bitfinex-derivatives/quotes_BTCF0:USTF0_20250114
["timestamp","ask_amount","ask_price","bid_price","bid_amount"]
[1736814598287,0.001,94688.0,94679.0,0.00158411]
[1736814599180,0.11470989,94688.0,94679.0,0.00158411]
[1736814599383,0.3608,94680.0,94679.0,0.00158411]
[1736814600583,0.3648,94680.0,94679.0,0.00158411]
[1736814600882,0.3658,94680.0,94679.0,0.00158411]
[1736814601184,0.37727249,94680.0,94679.0,0.00158411]
[1736814601387,0.4909898,94680.0,94679.0,0.00158411]
[1736814604382,0.4899898,94680.0,94679.0,0.00158411]
[1736814604585,0.11871731,94680.0,94679.0,0.00158411]
[1736814604785,0.11871731,94680.0,94679.0,0.05441211]
[1736814604982,0.11871731,94680.0,94679.0,1.55441211]
[1736814605484,0.49091492,94703.0,94689.0,0.052822]
[1736814605679,0.0904031,94702.0,94690.0,0.4378]
[1736814606279,0.10721658,94700.0,94690.0,0.4378]
[1736814607076,0.0131031,94702.0,94690.0,0.54501658]
[1736814607282,0.004,94702.0,94698.0,0.3608]
[1736814607485,0.004,94702.0,94700.0,0.052816]
[1736814607786,0.62825658,94730.0,94699.0,0.1571]
[1736814607989,0.62825658,94730.0,94720.0,0.3608]
[1736814608189,0.001,94729.0,94720.0,0.3608]
[1736814608389,0.001,94729.0,94711.0,0.3608]
[1736814608686,0.001,94729.0,94713.0,1.5]
[1736814608890,0.001,94729.0,94723.0,0.3608]
[1736814609081,0.3608,94728.0,94713.0,1.5]
[1736814609276,0.10721658,94723.0,94713.0,1.5]
[1736814610379,0.11365577,94722.0,94720.0,0.007]
[1736814610584,0.11365577,94722.0,94713.0,0.009]
[1736814610585,0.11465577,94722.0,94713.0,0.009]
[1736814610888,0.3608,94716.0,94713.0,0.009]
[1736814611088,0.0754,94715.0,94713.0,0.009]
[1736814611289,0.0764,94715.0,94713.0,0.009]
[1736814611490,0.0754,94715.0,94713.0,0.009]
[1736814611995,0.001,94714.0,94713.0,0.001]
[1736814613196,0.001,94714.0,94701.0,0.3608]
[1736814613495,0.3608,94709.0,94701.0,0.3608]
[1736814613793,0.0755,94708.0,94701.0,0.3608]
[1736814614194,0.18915577,94708.0,94701.0,0.3608]
[1736814615390,0.18915577,94708.0,94691.0,1.5]
[1736814615597,0.3608,94692.0,94679.0,0.00274411]
[1736814615796,0.3608,94684.0,94679.0,0.00274411]
[1736814616096,0.0812,94683.0,94679.0,0.00274411]
[1736814616591,0.001,94682.0,94679.0,0.00274411]
[1736814617797,0.001,94682.0,94679.0,0.00116]
[1736814618298,0.11472165,94682.0,94679.0,0.00116]
[1736814618505,0.11472165,94682.0,94659.0,1.552839]
[1736814618795,0.10721658,94670.0,94659.0,1.552839]
[1736814618993,0.10721658,94680.0,94659.0,1.552839]
[1736814619392,0.001,94679.0,94659.0,1.552839]
[1736814619693,0.10721658,94670.0,94659.0,1.5]
[1736814619899,0.10821658,94670.0,94659.0,1.507]
[1736814620597,0.10721658,94670.0,94659.0,1.507]
[1736814620797,0.10721658,94670.0,94664.0,0.3608]
[1736814621592,0.001,94679.0,94665.0,0.3608]
[1736814621789,0.001,94679.0,94678.0,0.3608]
[1736814622291,0.0812,94683.0,94678.0,0.3608]
[1736814622484,0.0812,94683.0,94682.0,1.5]
[1736814623100,0.442,94683.0,94682.0,1.5]
[1736814623698,0.442,94683.0,94682.0,1.501]
[1736814624594,0.442,94683.0,94664.0,0.055836]
[1736814624595,0.443,94683.0,94664.0,0.003]
[1736814624800,0.10721658,94675.0,94653.0,0.5171]
[1736814625096,0.10721658,94675.0,94666.0,1.5]
[1736814626098,0.3608,94673.0,94666.0,1.5]
[1736814626601,0.3608,94673.0,94666.0,1.508]
[1736814626997,0.11371804,94672.0,94666.0,1.508]
[1736814627393,0.11371804,94672.0,94666.0,1.51]
[1736814628196,0.3608,94671.0,94666.0,1.508]
[1736814628403,0.3608,94670.0,94666.0,1.502]
[1736814628593,0.4366,94670.0,94666.0,1.508]
[1736814628995,0.11371804,94669.0,94666.0,1.502]
[1736814629203,0.11371804,94669.0,94666.0,1.508]
[1736814629790,0.11371804,94669.0,94666.0,1.506]
[1736814629995,0.11371804,94669.0,94666.0,1.508]
[1736814630602,0.11371804,94669.0,94666.0,1.506]
[1736814630807,0.11371804,94669.0,94666.0,1.508]
[1736814631402,0.0768,94670.0,94666.0,1.506]
[1736814631595,0.0758,94670.0,94666.0,1.501]
[1736814631791,0.001,94669.0,94666.0,1.508]
[1736814632198,0.0758,94670.0,94666.0,1.501]
[1736814632398,0.0758,94670.0,94666.0,1.504]
[1736814632608,0.001,94669.0,94666.0,1.504]
[1736814632903,0.001,94669.0,94666.0,1.503]
[1736814633207,0.001,94669.0,94666.0,1.504]
[1736814633505,0.001,94669.0,94666.0,0.004]
[1736814633701,0.001,94669.0,94666.0,0.003]
[1736814634007,0.001,94669.0,94666.0,0.004]
[1736814634906,0.0758,94670.0,94666.0,0.004]
[1736814635400,0.0758,94670.0,94666.0,0.001]
[1736814635596,0.0758,94670.0,94666.0,0.004]
[1736814636003,0.0758,94670.0,94666.0,0.001]
[1736814636201,0.0758,94670.0,94666.0,0.004]
[1736814636604,0.0758,94670.0,94666.0,0.001]
[1736814636804,0.0808,94670.0,94666.0,0.002]
[1736814638308,0.0758,94670.0,94666.0,0.004]
[1736814641813,0.0758,94670.0,94662.0,1.5]
[1736814641814,0.001,94669.0,94662.0,1.5]
[1736814642012,0.3608,94663.0,94662.0,1.5]
[1736814643012,0.3608,94663.0,94662.0,1.501]
[1736814643711,0.47453682,94663.0,94662.0,1.501]
[1736814644215,0.47753682,94663.0,94662.0,1.501]
[1736814644816,0.47853682,94663.0,94662.0,1.501]
[1736814645111,0.48453682,94663.0,94662.0,1.5]
[1736814645615,0.48106675,94663.0,94662.0,1.5]
[1736814646122,0.36732993,94663.0,94662.0,1.5]
[1736814647121,0.36732993,94663.0,94662.0,1.5]
[1736814648516,0.01,94663.0,94662.0,1.5]
[1736814649321,0.02036513,94663.0,94662.0,1.5]
[1736814649618,0.01936513,94663.0,94662.0,1.5]
[1736814660530,0.01936513,94663.0,94657.0,0.3608]
[1736814660731,0.076,94662.0,94646.0,0.0753]
[1736814660931,0.21443316,94656.0,94647.0,1.5]
[1736814661126,0.10721658,94656.0,94647.0,1.5]
[1736814662438,0.10721658,94656.0,94647.0,1.501]
[1736814662938,0.3608,94648.0,94647.0,1.501]
[1736814663335,0.3608,94648.0,94647.0,1.490264]
[1736814663535,0.3618,94648.0,94647.0,1e-06]
[1736814664440,0.47553496,94648.0,94647.0,0.001]
[1736814664938,0.47453496,94648.0,94635.0,0.3608]
[1736814665140,0.47453496,94648.0,94636.0,0.0768]
[1736814665348,0.10721658,94646.0,94636.0,0.0768]
[1736814666841,0.11373496,94645.0,94636.0,0.0778]
[1736814668041,0.11373496,94645.0,94636.0,0.0808]
[1736814668543,0.11473496,94645.0,94636.0,0.0808]
[1736814669943,0.11473496,94645.0,94637.0,1.5]
[1736814670341,0.11473496,94645.0,94636.0,0.004]
[1736814670342,0.1607,94644.0,94636.0,0.004]
[1736814670547,0.2387,94644.0,94636.0,0.004]
[1736814670748,0.2397,94644.0,94636.0,1.504]
[1736814671145,0.2397,94644.0,94636.0,1.501]
[1736814671341,0.11373496,94643.0,94637.0,0.003]
[1736814671746,0.11373496,94643.0,94636.0,1.504]
[1736814671950,0.11373496,94643.0,94636.0,1.503]
[1736814672151,0.11373496,94643.0,94637.0,0.001]
[1736814672846,0.11473496,94643.0,94636.0,1.504]
[1736814673647,0.001,94642.0,94637.0,0.001]
[1736814674443,0.001,94642.0,94637.0,0.004]
[1736814674747,0.001,94642.0,94622.0,1.5]
[1736814674748,0.3608,94638.0,94622.0,1.5]
[1736814674945,0.3608,94630.0,94622.0,1.5]
[1736814675938,0.3608,94630.0,94622.0,1.504]
[1736814676150,0.3618,94630.0,94622.0,1.507]
[1736814679055,0.11377308,94629.0,94622.0,1.507]
[1736814681049,0.11477308,94629.0,94622.0,1.505]
[1736814684749,0.11477308,94629.0,94622.0,0.005]
[1736814685659,0.11477308,94629.0,94622.0,0.004]
[1736814686359,0.001,94628.0,94622.0,0.003]
[1736814686754,0.1458,94627.0,94622.0,0.003]
[1736814687255,0.001,94626.0,94622.0,0.003]
[1736814688661,0.11579309,94626.0,94622.0,0.003]
[1736814689457,0.002,94626.0,94622.0,0.003]
[1736814693050,0.01235483,94626.0,94622.0,0.003]
[1736814693755,0.01235483,94626.0,94610.0,1.5]
[1736814693965,0.3608,94611.0,94598.0,0.0015856]
[1736814694153,0.10721658,94610.0,94598.0,0.0015856]
[1736814694353,0.10721658,94610.0,94602.0,1.5]
[1736814695563,0.10821658,94610.0,94602.0,1.501]
[1736814695956,0.0738,94609.0,94602.0,1.501]
[1736814696156,0.0738,94609.0,94602.0,1.505]
[1736814697365,0.0738,94609.0,94602.0,1.504]
[1736814697863,0.0748,94609.0,94602.0,1.504]
[1736814698059,0.0748,94609.0,94602.0,1.5]
[1736814698366,0.001,94609.0,94602.0,1.5]
[1736814698664,0.10721658,94630.0,94608.0,0.052867]
[1736814698865,0.10721658,94630.0,94615.0,0.3608]
[1736814699066,0.10721658,94630.0,94616.0,0.214]
[1736814699658,0.10721658,94630.0,94616.0,0.0731]
[1736814699859,0.10721658,94630.0,94617.0,1.5]
[1736814699860,0.3608,94624.0,94617.0,1.5]
[1736814700060,0.0679,94623.0,94598.0,0.0015856]
[1736814700259,0.10721658,94613.0,94598.0,0.0015856]
[1736814700461,0.0724,94612.0,94601.0,1.5]
[1736814701760,0.1861971,94612.0,94601.0,1.5]
[1736814703260,0.2579971,94612.0,94601.0,1.5]
[1736814703871,0.26841373,94612.0,94601.0,1.5]
[1736814704771,0.1137971,94611.0,94601.0,1.5]
[1736814705570,0.3608,94608.0,94601.0,1.5]
[1736814706867,0.3608,94608.0,94602.0,0.0711]
[1736814706868,0.1137971,94607.0,94602.0,0.0711]
[1736814707069,0.1137971,94607.0,94604.0,0.3608]
[1736814707273,0.3608,94616.0,94607.0,0.052868]
[1736814707467,0.3608,94616.0,94612.0,1.5]
[1736814708063,0.10721658,94622.0,94612.0,1.8608]
[1736814708473,0.001,94616.0,94612.0,1.8608]
[1736814709066,0.006,94616.0,94612.0,1.8608]
[1736814709370,0.005,94616.0,94612.0,1.8608]
[1736814709873,0.005,94616.0,94612.0,1.5]
[1736814711069,0.007,94616.0,94612.0,1.5]
[1736814720978,0.007,94616.0,94612.0,1.552864]
[1736814721173,0.007,94616.0,94615.0,0.052864]
[1736814722576,0.007,94616.0,94612.0,1.86196]
[1736814722773,0.007,94616.0,94612.0,1.5]
[1736814723373,0.009,94616.0,94612.0,1.5]
[1736814723677,0.009,94616.0,94603.0,0.3608]
[1736814723678,0.12278683,94616.0,94603.0,0.3608]
[1736814723871,0.10721658,94613.0,94603.0,0.3608]
[1736814724382,0.3608,94606.0,94603.0,1.5]
[1736814725686,0.11379922,94605.0,94603.0,1.5]
[1736814727079,0.11479922,94605.0,94603.0,1.5]
[1736814727784,0.11579922,94605.0,94603.0,1.5]
[1736814728175,0.3608,94635.0,94603.0,1.8608]
[1736814728377,0.10721658,94630.0,94615.0,0.3608]
[1736814728577,0.01203708,94627.0,94618.0,0.052862]
[1736814728784,0.00158561,94627.0,94618.0,0.052862]
[1736814729186,0.3608,94626.0,94618.0,0.052862]
[1736814729376,0.3608,94626.0,94615.0,0.3608]
[1736814729377,0.001,94617.0,94615.0,0.3608]
[1736814729977,0.002,94617.0,94615.0,0.3608]
[1736814730180,0.001,94617.0,94616.0,0.052863]
[1736814730483,0.3608,94626.0,94616.0,0.052863]
[1736814730681,0.006,94617.0,94616.0,0.052863]
[1736814731081,0.009,94617.0,94616.0,0.125063]
[1736814731579,0.003,94617.0,94616.0,0.125063]
[1736814732677,0.3668,94626.0,94616.0,0.0722]
[1736814732883,0.3668,94626.0,94618.0,0.052861]
[1736814733187,0.3608,94626.0,94618.0,0.052861]
[1736814733378,0.3608,94626.0,94616.0,0.0722]
[1736814733579,0.3608,94626.0,94617.0,1.5]
[1736814733780,0.3638,94626.0,94617.0,1.5]
[1736814734080,0.3698,94626.0,94617.0,1.5]
[1736814734281,0.11377826,94625.0,94617.0,1.5]
[1736814735680,0.11377826,94625.0,94620.0,0.05286]
[1736814736691,0.12077826,94625.0,94620.0,0.05286]
[1736814737078,0.12477826,94625.0,94620.0,0.05286]
[1736814737394,0.012,94625.0,94617.0,1.50116]
[1736814737590,0.012,94625.0,94617.0,1.5]
[1736814737985,0.3608,94618.0,94605.0,0.15538686]
[1736814738291,0.10721658,94615.0,94605.0,0.15538686]
[1736814738476,0.10721658,94615.0,94606.0,1.5]
[1736814739387,0.11377826,94614.0,94606.0,1.5]
[1736814739990,0.3608,94608.0,94606.0,1.5]
[1736814741383,0.11377826,94607.0,94606.0,1.5]
[1736814742786,0.11577826,94607.0,94606.0,1.5]
[1736814743196,0.11577826,94607.0,94606.0,1.552869]
[1736814743400,0.11677826,94607.0,94606.0,1.552869]
[1736814743592,0.003,94607.0,94606.0,1.552869]
[1736814744092,0.003,94607.0,94606.0,1.5]
[1736814744498,0.11680045,94607.0,94606.0,1.5]
[1736814746491,0.003,94607.0,94606.0,1.5]
[1736814746889,0.1367,94617.0,94606.0,1.5]
[1736814747093,0.3608,94627.0,94616.0,0.052863]
[1736814747299,0.37130049,94627.0,94617.0,0.052862]
[1736814747498,0.37130049,94627.0,94618.0,1.5]
[1736814748296,0.11377723,94626.0,94618.0,1.5]
[1736814748889,0.11377723,94626.0,94622.0,0.052859]
[1736814749690,0.12077723,94626.0,94620.0,0.3608]
[1736814749994,0.12477723,94626.0,94620.0,0.413661]
[1736814750194,0.11777723,94626.0,94620.0,0.413661]
[1736814750398,0.12677723,94626.0,94622.0,0.001]
[1736814752099,0.11677723,94626.0,94620.0,0.413661]
[1736814752301,0.12477723,94626.0,94620.0,0.413661]
[1736814752802,0.12477723,94626.0,94620.0,0.3608]
[1736814752990,0.3608,94625.0,94618.0,1.50124]
[1736814753195,0.3608,94625.0,94618.0,1.5]
[1736814753399,0.3618,94624.0,94601.0,0.00158553]
[1736814753589,0.10721658,94611.0,94601.0,0.36238553]
[1736814753793,0.10721658,94611.0,94602.0,1.5]
[1736814754195,0.0656,94612.0,94602.0,1.5]
[1736814754404,0.11377723,94610.0,94602.0,1.5]
[1736814754704,0.11377723,94610.0,94606.0,0.052868]
[1736814754898,0.11377723,94610.0,94609.0,0.3608]
[1736814755103,0.11377723,94610.0,94609.0,0.413667]
[1736814755304,0.17937723,94612.0,94609.0,0.413667]
[1736814755496,0.11377723,94612.0,94610.0,1.552866]
[1736814755697,0.11377723,94612.0,94611.0,0.052866]
[1736814756206,0.002,94610.0,94609.0,0.413667]
[1736814756406,0.0656,94623.0,94609.0,0.3608]
[1736814756591,0.0656,94623.0,94619.0,0.3608]
[1736814756790,0.0656,94623.0,94620.0,1.552861]
[1736814758609,0.0736,94623.0,94620.0,1.552861]
[1736814758804,0.0766,94623.0,94620.0,1.552861]
[1736814759509,0.0637,94622.0,94620.0,1.552861]
[1736814759709,0.0637,94622.0,94620.0,1.5]
[1736814759914,0.0634,94621.0,94620.0,1.5]
[1736814760411,0.0634,94621.0,94609.0,0.3608]
[1736814760617,0.10721658,94620.0,94609.0,0.3608]
[1736814760807,0.10721658,94620.0,94610.0,1.5]
[1736814761209,0.3608,94611.0,94610.0,1.5]
[1736814761614,0.47457594,94611.0,94610.0,1.5]
[1736814761915,0.3608,94611.0,94610.0,1.5]
[1736814762514,0.47560606,94611.0,94610.0,1.5]
[1736814762712,0.47860606,94611.0,94610.0,1.5]
[1736814762918,0.48932452,94611.0,94610.0,1.5]
[1736814772021,0.49032452,94611.0,94587.0,0.00158553]
[1736814772324,0.10721658,94597.0,94587.0,0.00158553]
[1736814772520,0.1362,94596.0,94588.0,1.5]
[1736814773931,0.3608,94590.0,94588.0,1.5]
[1736814774829,0.3608,94590.0,94579.0,0.3608]
[1736814775028,0.10721658,94589.0,94588.0,0.003]
[1736814775236,0.3608,94590.0,94588.0,0.003]
[1736814775435,0.11382202,94589.0,94588.0,0.003]
[1736814775630,0.11382202,94589.0,94588.0,0.005]
[1736814775934,0.11482202,94589.0,94588.0,0.002]
[1736814776137,0.11482202,94589.0,94588.0,0.005]
[1736814776735,0.12182202,94589.0,94580.0,1.5]
[1736814776935,0.3608,94581.0,94580.0,1.5]
[1736814779040,0.3628,94581.0,94580.0,1.5]
[1736814779736,0.3638,94581.0,94580.0,1.5]
[1736814780935,0.003,94581.0,94580.0,1.5]
[1736814782132,0.002,94581.0,94580.0,1.5]
[1736814782334,0.002,94581.0,94580.0,1.501]
[1736814782534,0.001,94581.0,94580.0,1.501]
[1736814782937,0.001,94581.0,94580.0,1.5]
[1736814783140,0.002,94581.0,94580.0,1.5]
[1736814785435,0.001,94581.0,94580.0,1.5]
[1736814785737,0.46801658,94590.0,94580.0,1.502]
[1736814786239,0.46801658,94590.0,94580.0,1.501]
[1736814786841,0.46801658,94590.0,94580.0,1.5]
[1736814787030,0.46801658,94610.0,94589.0,0.413678]
[1736814787233,0.46801658,94610.0,94590.0,0.16009358]
[1736814787433,0.46801658,94610.0,94589.0,0.3608]
[1736814787637,0.10721658,94600.0,94591.0,1.5]
[1736814789138,0.11321658,94600.0,94591.0,1.5]
[1736814789839,0.10921658,94600.0,94591.0,1.501]
[1736814790839,0.10721658,94600.0,94591.0,1.502]
[1736814791538,0.10721658,94600.0,94591.0,1.501]
[1736814791839,0.11380645,94599.0,94591.0,1.553876]
[1736814792440,0.11380645,94599.0,94597.0,0.3608]
[1736814792740,0.11380645,94602.0,94598.0,0.117973]
[1736814792940,0.11380645,94602.0,94599.0,0.116072]
[1736814793441,0.11380645,94602.0,94601.0,0.052872]
[1736814793838,0.11539243,94609.0,94601.0,1.552872]
[1736814794940,0.11739243,94609.0,94601.0,1.552872]
[1736814796553,0.12139243,94609.0,94601.0,1.552872]
[1736814797338,0.11939243,94609.0,94601.0,1.552872]
[1736814798342,0.11939243,94609.0,94604.0,0.052869]
[1736814798842,0.11539243,94609.0,94604.0,0.052869]
[1736814799842,0.11639243,94609.0,94604.0,0.052869]
[1736814800232,0.00258598,94609.0,94604.0,0.052869]
[1736814800735,0.00358598,94609.0,94604.0,0.052869]
[1736814807650,0.11738065,94609.0,94604.0,0.052869]
[1736814808935,0.11738065,94609.0,94605.0,0.3608]
[1736814809138,0.00358598,94609.0,94605.0,0.413669]
[1736814810342,0.00458598,94609.0,94605.0,0.413669]
[1736814810841,0.00458598,94609.0,94601.0,1.50116]
[1736814811048,0.00458598,94609.0,94601.0,1.5]
[1736814811049,0.3608,94605.0,94601.0,1.5]
[1736814812139,0.11379467,94604.0,94601.0,1.5]
[1736814813649,0.11679467,94604.0,94601.0,1.5]
[1736814813949,0.004,94604.0,94601.0,1.5]
[1736814815945,0.11780924,94604.0,94601.0,1.5]
[1736814816951,0.11780924,94604.0,94588.0,0.06340628]
[1736814816952,0.11780924,94604.0,94588.0,0.052878]
[1736814817143,0.10721658,94600.0,94588.0,0.052878]
[1736814817343,0.10721658,94600.0,94586.0,0.15538686]
[1736814817344,0.1991,94599.0,94589.0,1.5]
[1736814817547,0.1991,94599.0,94590.0,0.052878]
[1736814817748,0.31290924,94599.0,94590.0,0.052878]
[1736814818952,0.11380924,94598.0,94590.0,0.052878]
[1736814819151,0.11380924,94598.0,94590.0,0.053878]
[1736814819854,0.11380924,94598.0,94590.0,0.052878]
[1736814820340,0.11380924,94598.0,94589.0,1.50116]
[1736814820341,0.11380924,94598.0,94592.0,0.052877]
[1736814820545,0.11380924,94598.0,94597.0,0.052874]
[1736814820945,0.00158598,94609.0,94597.0,0.413674]
[1736814821153,0.0646,94617.0,94614.0,0.052863]
[1736814821352,0.07524754,94617.0,94616.0,1.5]
[1736814822753,0.08124754,94617.0,94616.0,1.5]
[1736814823862,0.08424754,94617.0,94616.0,1.5]
[1736814827354,0.08424754,94617.0,94612.0,0.052865]
[1736814827557,0.08424754,94617.0,94607.0,0.3608]
[1736814827848,0.08424754,94617.0,94608.0,1.5]
[1736814828952,0.08124754,94617.0,94608.0,1.5]
[1736814829145,0.08024754,94617.0,94608.0,1.5]
[1736814829343,0.07724754,94617.0,94608.0,1.5]
[1736814829553,0.3608,94614.0,94608.0,1.5]
[1736814830852,0.3618,94614.0,94608.0,1.5]
[1736814831057,0.3648,94614.0,94608.0,1.5]
[1736814831863,0.3648,94614.0,94612.0,0.052865]
[1736814832152,0.004,94614.0,94613.0,0.052865]
[1736814832957,0.003,94614.0,94613.0,0.052865]
[1736814833158,0.005,94614.0,94613.0,0.052865]
[1736814834058,0.007,94614.0,94613.0,0.052865]
[1736814834259,0.005,94614.0,94613.0,0.052865]
[1736814834550,0.002,94614.0,94613.0,0.052865]
[1736814834756,0.007,94614.0,94613.0,0.052865]
[1736814840759,0.007,94614.0,94608.0,1.554027]
[1736814840958,0.007,94614.0,94608.0,1.552867]
[1736814841960,0.005,94614.0,94612.0,0.052865]
[1736814842161,0.006,94614.0,94612.0,0.052865]
[1736814842356,0.004,94614.0,94612.0,0.052865]
[1736814842962,0.003,94614.0,94612.0,0.052865]
[1736814843165,0.005,94614.0,94612.0,0.052865]
[1736814843364,0.005,94614.0,94608.0,1.554027]
[1736814843668,0.005,94614.0,94608.0,1.552867]
[1736814844160,0.007,94614.0,94608.0,1.552867]
[1736814844350,0.007,94614.0,94608.0,1.5]
[1736814844759,0.005,94614.0,94608.0,1.5]
[1736814845057,0.005,94614.0,94608.0,1.552868]
[1736814845264,0.004,94614.0,94608.0,1.5]
[1736814846261,0.3608,94612.0,94608.0,1.5]
[1736814846467,0.1297,94611.0,94608.0,1.5]
[1736814847358,0.11378523,94610.0,94608.0,1.5]
[1736814848058,0.11378523,94610.0,94609.0,0.052867]
[1736814848667,0.11378523,94610.0,94609.0,1.552867]
[1736814849262,0.004,94610.0,94609.0,1.552867]
[1736814849862,0.005,94610.0,94609.0,1.552867]
[1736814851262,0.005,94610.0,94609.0,1.913667]
[1736814851859,0.3608,94629.0,94609.0,1.913667]
[1736814852066,0.3608,94629.0,94623.0,0.052857]
[1736814852867,0.3628,94629.0,94623.0,0.052857]
[1736814853165,0.11377727,94628.0,94623.0,0.052857]
[1736814853560,0.11377727,94628.0,94627.0,0.052857]
[1736814854257,0.11377727,94628.0,94627.0,1.552857]
[1736814855052,0.12277727,94628.0,94627.0,1.552857]
[1736814855665,0.12277727,94628.0,94627.0,1.553857]
[1736814855863,0.12677727,94628.0,94627.0,1.553857]
[1736814857365,0.013,94628.0,94627.0,1.553857]
[1736814859264,0.013,94628.0,94627.0,1.501]
[1736814865273,0.013,94628.0,94627.0,0.001]
[1736814865870,0.174,94628.0,94617.0,1.5]
[1736814866068,0.3608,94618.0,94617.0,1.5]
[1736814866476,0.3608,94618.0,94604.0,0.00158549]
[1736814866773,0.3608,94609.0,94604.0,0.00158549]
[1736814866976,0.0614,94608.0,94605.0,1.5]
[1736814867676,0.17517727,94608.0,94605.0,1.5]
[1736814868682,0.17617727,94608.0,94605.0,1.5]
[1736814869174,0.17817727,94608.0,94605.0,1.5]
[1736814869875,0.17717727,94608.0,94605.0,1.5]
[1736814870277,0.18017727,94608.0,94605.0,1.5]
[1736814870775,0.17617727,94608.0,94605.0,1.5]
[1736814871070,0.11777727,94608.0,94607.0,0.052868]
[1736814871979,0.11577727,94608.0,94607.0,1.552868]
[1736814872175,0.002,94608.0,94607.0,1.552868]
[1736814872676,0.002,94608.0,94607.0,1.5]
[1736814873777,0.003,94608.0,94607.0,1.5]
[1736814874577,0.6638,94608.0,94576.0,0.3608]
[1736814874879,0.10721658,94588.0,94571.0,0.3608]
[1736814875181,0.10721658,94581.0,94571.0,0.3608]
[1736814875475,0.10721658,94581.0,94572.0,1.5]
[1736814875772,0.10721658,94581.0,94574.0,0.3608]
[1736814876081,0.10721658,94581.0,94578.0,0.001]
[1736814876375,0.2014,94587.0,94578.0,0.001]
[1736814877180,0.11384474,94586.0,94578.0,0.001]
[1736814877569,0.11384474,94586.0,94578.0,0.002]
[1736814878379,0.11384474,94586.0,94578.0,0.001]
[1736814879267,0.21211994,94587.0,94578.0,0.001]
[1736814880371,0.21211994,94587.0,94572.0,1.50124]
[1736814880571,0.10721658,94582.0,94578.0,0.001]
[1736814880771,0.21211994,94587.0,94578.0,0.001]
[1736814881180,0.3608,94579.0,94578.0,0.001]
[1736814881578,0.3608,94579.0,94572.0,1.5032]
[1736814881777,0.3608,94579.0,94572.0,1.502]
[1736814881973,0.3608,94579.0,94572.0,1.503]
[1736814882584,0.11384469,94578.0,94572.0,1.503]
[1736814883275,0.11384469,94578.0,94572.0,1.501]
[1736814883878,0.11384469,94578.0,94572.0,1.503]
[1736814886377,0.11384469,94578.0,94572.0,1.501]
[1736814886378,0.11784469,94578.0,94572.0,1.501]
[1736814886580,0.11784469,94578.0,94572.0,1.5]
[1736814886772,0.11984469,94578.0,94572.0,1.5]
[1736814886976,0.11584469,94578.0,94572.0,1.5]
[1736814887180,0.11984469,94578.0,94572.0,1.5]
[1736814887485,0.006,94578.0,94572.0,1.5]
[1736814887878,0.001,94577.0,94569.0,0.00158599]
[1736814888076,0.3608,94570.0,94556.0,0.3608]
[1736814888277,0.21443316,94566.0,94556.0,0.3608]
[1736814888680,0.0677,94565.0,94556.0,0.3608]
[1736814888881,0.0677,94565.0,94557.0,1.5]
[1736814889983,0.0717,94565.0,94557.0,1.5]
[1736814896386,0.004,94565.0,94557.0,1.5]
[1736814897690,0.002,94565.0,94557.0,1.5]
[1736814898379,0.001,94565.0,94557.0,1.5]
[1736814901185,0.001,94565.0,94558.0,0.109995]
[1736814901389,0.001,94565.0,94559.0,0.052895]
[1736814901784,0.001,94565.0,94560.0,1.5]
[1736814902589,0.002,94565.0,94560.0,1.5]
[1736814903385,0.001,94565.0,94560.0,1.5]
[1736814903587,0.002,94565.0,94560.0,1.5]
[1736814903989,0.001,94565.0,94560.0,1.5]
[1736814904295,0.006,94565.0,94560.0,1.5]
[1736814905091,0.11985713,94565.0,94560.0,1.5]
[1736814905288,0.3608,94561.0,94547.0,0.3608]
[1736814905492,0.10721658,94557.0,94547.0,0.3608]
[1736814905799,0.10721658,94557.0,94548.0,1.5]
[1736814905986,0.16571658,94560.0,94548.0,1.5]
[1736814905987,0.27293316,94560.0,94548.0,1.5]
[1736814906593,0.16471658,94560.0,94548.0,1.5]
[1736814907291,0.11386829,94559.0,94552.0,0.052898]
[1736814909497,0.11386829,94559.0,94551.0,0.3608]
[1736814909699,0.11486829,94559.0,94551.0,0.3608]
[1736814910494,0.11486829,94559.0,94551.0,0.413699]
[1736814910898,0.11386829,94559.0,94551.0,0.414699]
[1736814911699,0.11386829,94559.0,94551.0,0.3618]
[1736814912199,0.11386829,94559.0,94551.0,0.001]
[1736814912809,0.11386829,94559.0,94551.0,0.3618]
[1736814913807,0.11386829,94559.0,94551.0,0.414699]
[1736814918813,0.947104,94552.0,94551.0,0.414699]
[1736814919111,0.947104,94552.0,94551.0,1.914699]
[1736814919906,0.05289,94568.0,94567.0,0.05289]
[1736814920502,0.16674409,94568.0,94567.0,1.55289]
[1736814920910,0.16674409,94568.0,94567.0,1.5]
[1736814921318,0.05289,94568.0,94567.0,1.5]
[1736814921717,0.05489,94568.0,94567.0,1.5]
[1736814922426,0.16874409,94568.0,94567.0,1.5]
[1736814922923,0.11585409,94568.0,94567.0,1.5]
[1736814923117,0.12085409,94568.0,94567.0,1.552891]
[1736814923318,0.12085409,94568.0,94567.0,1.913691]
[1736814923821,0.01,94568.0,94567.0,1.913691]
[1736814924420,0.11385409,94569.0,94568.0,0.05289]
[1736814924724,0.00158653,94578.0,94577.0,0.052885]